fUSD/lending_fUSD_20240924
["ID","MTS","AMOUNT","RATE_DAILY","PERIOD"]
[339051092,1727178646240,-828.71,0.00012887,2]
[339051093,1727178646249,-500.0,0.00012887,2]
[339051094,1727178646261,-500.0,0.00012887,2]
[339051095,1727178646270,-500.0,0.00012887,2]
[339051096,1727178646279,-500.0,0.00012887,2]
[339051097,1727178646288,-508.04,0.00012887,2]
[339051098,1727178646298,-500.0,0.00012887,2]
[339051099,1727178646307,-500.0,0.00012887,2]
[339051100,1727178646318,-1415.6,0.00012887,2]
[339051101,1727178646327,-547.43,0.00012887,2]
[339051102,1727178646337,-500.0,0.00012887,2]
[339051103,1727178646347,-632.38,0.00012887,2]
[339051104,1727178646356,-500.0,0.00012887,2]
[339051105,1727178646366,-616.96,0.00012887,2]
[339051106,1727178646375,-500.0,0.00012887,2]
[339051107,1727178646384,-500.0,0.00012887,2]
[339051108,1727178646393,-525.69,0.00012887,2]
[339051109,1727178646403,-514.71,0.00012887,2]
[339051110,1727178646412,-526.34897324,0.00012887,2]
[339051111,1727178646421,-500.0,0.00012887,2]
[339051112,1727178646431,-574.61,0.00012887,2]
[339051113,1727178646440,-500.0,0.00012887,2]
[339051114,1727178646449,-500.0,0.00012887,2]
[339051115,1727178646458,-500.0,0.00012887,2]
[339051116,1727178646468,-500.0,0.00012887,2]
[339051117,1727178646478,-500.0,0.00012887,2]
[339051118,1727178646487,-219.84482467,0.00012887,2]
[339051119,1727178646496,-1420.15,0.00012887,2]
[339051120,1727178646506,-500.0,0.00012887,2]
[339051121,1727178646516,-500.0,0.00012887,2]
[339051122,1727178646525,-500.0,0.00012887,2]
[339051123,1727178646534,-500.0,0.00012887,2]
[339051124,1727178646544,-500.0,0.00012887,2]
[339051125,1727178646553,-500.0,0.00012887,2]
[339051126,1727178646563,-500.0,0.00012887,2]
[339051127,1727178646572,-547.56,0.00012887,2]
[339051128,1727178646581,-500.0,0.00012887,2]
[339051129,1727178646590,-500.0,0.00012887,7]
[339051130,1727178646599,-595.88056869,0.00012887,2]
[339051131,1727178646609,-500.0,0.00012887,2]
[339051132,1727178646619,-500.0,0.00012887,2]
[339051133,1727178646628,-537.34,0.00012887,2]
[339051134,1727178646637,-924.6,0.00012887,2]
[339051135,1727178646646,-506.15,0.00012887,2]
[339051137,1727178646656,-500.0,0.00012887,2]
[339051138,1727178646665,-500.0,0.00012887,2]
[339051139,1727178646675,-1147.06,0.00012887,2]
[339051140,1727178646685,-1961.48,0.00012887,2]
[339051141,1727178646694,-500.0,0.00012887,2]
[339051142,1727178646703,-500.0,0.00012887,2]
[339051143,1727178646713,-708.75,0.00012887,2]
[339051144,1727178646722,-500.0,0.00012887,2]
[339051145,1727178646731,-500.0,0.00012887,2]
[339051146,1727178646741,-500.0,0.00012887,2]
[339051147,1727178646751,-500.0,0.00012887,2]
[339051148,1727178646764,-500.0,0.00012887,2]
[339051149,1727178646774,-500.0,0.00012887,2]
[339051150,1727178646783,-178.41912045,0.00012887,2]
[339051151,1727178646792,-500.0,0.00012887,2]
[339051152,1727178646802,-500.0,0.00012887,2]
[339051153,1727178646811,-500.0,0.00012887,2]
[339051154,1727178646821,-500.0,0.00012887,2]
[339051155,1727178646830,-500.0,0.00012887,2]
[339051156,1727178646839,-500.0,0.00012887,2]
[339051157,1727178646849,-500.0,0.00012887,2]
[339051158,1727178646858,-500.0,0.00012887,2]
[339051159,1727178646867,-500.0,0.00012887,2]
[339051160,1727178646876,-500.0,0.00012887,2]
[339051161,1727178646886,-1763.03,0.00012888,2]
[339051162,1727178646894,-500.0,0.00012888,2]
[339051163,1727178646903,-511.37,0.00012888,2]
[339051164,1727178647071,-500.0,0.00012888,2]
[339051165,1727178647081,-500.0,0.00012888,2]
[339051166,1727178647091,-500.0,0.00012888,2]
[339051167,1727178647101,-500.0,0.00012888,2]
[339051168,1727178647112,-500.0,0.00012888,2]
[339051169,1727178647121,-500.0,0.00012888,2]
[339051170,1727178647132,-164.34819358,0.00012888,2]
[339051171,1727178647141,-500.0,0.00012888,2]
[339051172,1727178647151,-500.0,0.00012888,2]
[339051173,1727178647160,-500.0,0.00012888,2]
[339051174,1727178647170,-500.0,0.00012888,2]
[339051175,1727178647179,-986.62,0.00012888,2]
[339051176,1727178647189,-1120.46,0.00012888,2]
[339051177,1727178647199,-500.0,0.00012888,2]
[339051178,1727178647208,-1403.39,0.00012888,2]
[339051179,1727178647217,-500.0,0.00012888,2]
[339051180,1727178647227,-500.0,0.00012888,2]
[339051181,1727178647236,-500.0,0.00012888,2]
[339051182,1727178647245,-684.08,0.00012888,2]
[339051183,1727178647255,-500.0,0.00012888,2]
[339051184,1727178647265,-529.02,0.00012888,2]
[339051185,1727178647274,-1763.03,0.00012889,2]
[339051186,1727178647284,-500.0,0.00012889,2]
[339051187,1727178647293,-500.0,0.00012889,2]
[339051188,1727178647302,-2759.14,0.00012889,2]
[339051189,1727178647311,-500.0,0.00012889,2]
[339051190,1727178647321,-511.37,0.00012889,2]
[339051191,1727178647331,-495.23015003,0.00012889,2]
[339051192,1727178647340,-384.21958891,0.00012889,2]
[339051193,1727178647349,-828.71,0.00012889,2]
[339051194,1727178647359,-508.04,0.00012889,2]
[339051195,1727178647368,-500.0,0.00012889,2]
[339051196,1727178647378,-500.0,0.00012889,2]
[339051197,1727178647387,-1390.79,0.00012889,2]
[339051198,1727178647396,-500.0,0.00012889,2]
[339051199,1727178647406,-500.0,0.00012889,2]
[339051200,1727178647415,-500.0,0.00012889,2]
[339051201,1727178647424,-1415.6,0.00012889,2]
[339051202,1727178647433,-547.43,0.00012889,2]
[339051203,1727178647443,-500.0,0.00012889,2]
[339051204,1727178647452,-632.38,0.00012889,2]
[339051205,1727178647461,-500.0,0.00012889,2]
[339051206,1727178647471,-500.0,0.00012889,2]
[339051207,1727178647480,-616.96,0.00012889,2]
[339051208,1727178647489,-500.0,0.00012889,2]
[339051209,1727178647498,-501.08,0.00012889,2]
[339051210,1727178647508,-500.0,0.00012889,2]
[339051211,1727178647517,-500.0,0.00012889,2]
[339051212,1727178647527,-500.0,0.00012889,2]
[339051213,1727178647536,-525.69,0.00012889,2]
[339051214,1727178647546,-500.0,0.00012889,2]
[339051215,1727178647555,-514.71,0.00012889,2]
[339051216,1727178647564,-500.0,0.00012889,2]
[339051217,1727178647573,-500.0,0.00012889,2]
[339051218,1727178647583,-574.61,0.00012889,2]
[339051219,1727178647592,-500.0,0.00012889,2]
[339051220,1727178647602,-500.0,0.00012889,2]
[339051221,1727178647611,-595.30484914,0.00012889,2]
[339051222,1727178647621,-500.0,0.00012889,2]
[339051223,1727178647630,-329.41241518,0.00012889,2]
[339051224,1727178647640,-500.0,0.00012889,2]
[339051225,1727178647649,-500.0,0.00012889,2]
[339051226,1727178647658,-1420.15,0.00012889,2]
[339051227,1727178647667,-500.0,0.00012889,2]
[339051228,1727178647677,-500.0,0.00012889,2]
[339051229,1727178647686,-500.0,0.00012889,2]
[339051230,1727178647696,-500.0,0.00012889,2]
[339051231,1727178647705,-500.0,0.00012889,2]
[339051232,1727178647714,-500.0,0.00012889,2]
[339051233,1727178647724,-527.54590267,0.00012889,2]
[339051234,1727178647733,-500.0,0.00012889,2]
[339051235,1727178647742,-500.0,0.00012889,2]
[339051236,1727178647751,-547.56,0.00012889,2]
[339051237,1727178647763,-500.0,0.00012889,2]
[339051238,1727178647773,-500.0,0.00012889,7]
[339051239,1727178647782,-500.0,0.00012889,2]
[339051240,1727178647790,-500.0,0.00012889,2]
[339051241,1727178647799,-500.0,0.00012889,2]
[339051242,1727178647808,-854.54,0.00012889,2]
[339051243,1727178647817,-500.0,0.00012889,2]
[339051244,1727178647826,-537.34,0.00012889,2]
[339051245,1727178647835,-924.6,0.00012889,2]
[339051246,1727178647844,-506.15,0.00012889,2]
[339051247,1727178647853,-500.0,0.00012889,2]
[339051248,1727178647863,-500.0,0.00012889,2]
[339051249,1727178647872,-285.99381268,0.00012889,2]
[339051250,1727178647882,-500.0,0.00012889,2]
[339051251,1727178647891,-500.0,0.00012889,2]
[339051252,1727178647900,-1147.06,0.00012889,2]
[339051253,1727178647909,-500.0,0.00012889,2]
[339051254,1727178647918,-500.0,0.00012889,2]
[339051255,1727178647927,-1108.07,0.00012889,2]
[339051256,1727178647936,-500.0,0.00012889,2]
[339051257,1727178647945,-673.59,0.00012889,2]
[339051258,1727178647954,-1961.48,0.00012889,2]
[339051259,1727178647963,-500.0,0.00012889,2]
[339051260,1727178647972,-500.0,0.00012889,2]
[339051261,1727178647981,-500.0,0.00012889,2]
[339051262,1727178647990,-903.73,0.00012889,2]
[339051263,1727178647999,-708.75,0.00012889,2]
[339051264,1727178648009,-500.0,0.00012889,2]
[339051265,1727178648018,-500.0,0.00012889,2]
[339051266,1727178648028,-182.48871601,0.00012889,2]
[339051267,1727178648038,-535.19,0.00012889,2]
[339051268,1727178648047,-500.0,0.00012889,2]
[339051269,1727178648060,-500.0,0.00012889,2]
[339051270,1727178648069,-1790.4,0.00012889,2]
[339051271,1727178648078,-581.0595475,0.00012889,2]
[339051272,1727178648087,-500.0,0.00012889,2]
[339051273,1727178648097,-560.95,0.00012889,2]
[339051274,1727178648106,-500.0,0.00012889,2]
[339051275,1727178648115,-500.0,0.00012889,2]
[339051276,1727178648124,-515.14118606,0.00012889,2]
[339051277,1727178648133,-500.0,0.00012889,2]
[339051278,1727178648142,-500.0,0.00012889,2]
[339051279,1727178648152,-500.0,0.00012889,2]
[339051280,1727178648161,-2385.27,0.00012889,2]
[339051281,1727178648171,-519.84,0.00012889,2]
[339051282,1727178648180,-500.0,0.00012889,2]
[339051283,1727178648190,-500.0,0.00012889,2]
[339051284,1727178648199,-500.0,0.00012889,2]
[339051285,1727178648210,-502.26758758,0.00012889,2]
[339051286,1727178648219,-1648.64,0.00012889,2]
[339051287,1727178648229,-611.06921351,0.00012889,2]
[339051288,1727178648239,-982.68,0.00012889,2]
[339051289,1727178648249,-500.0,0.00012889,2]
[339051290,1727178648259,-500.0,0.00012889,2]
[339051291,1727178648269,-896.36,0.00012889,2]
[339051292,1727178648278,-500.0,0.00012889,2]
[339051293,1727178648288,-500.0,0.00012889,2]
[339051294,1727178648298,-917.74,0.00012889,2]
[339051295,1727178648307,-979.59,0.00012889,2]
[339051296,1727178648317,-500.0,0.00012889,2]
[339051297,1727178648326,-500.0,0.00012889,2]
[339051298,1727178648336,-290.39043914,0.00012889,2]
[339051299,1727178648345,-500.0,0.00012889,2]
[339051300,1727178648355,-1542.59,0.00012889,2]
[339051301,1727178648364,-500.0,0.00012889,2]
[339051302,1727178648374,-1327.41,0.00012889,2]
[339051303,1727178648383,-1065.91,0.00012889,2]
[339051304,1727178648393,-500.0,0.00012889,2]
[339051305,1727178648402,-500.0,0.00012889,2]
[339051306,1727178648411,-1473.37,0.00012889,2]
[339051307,1727178648421,-986.62,0.00012889,2]
[339051308,1727178648430,-2497.35,0.00012889,2]
[339051309,1727178648439,-1120.46,0.00012889,2]
[339051310,1727178648449,-500.0,0.00012889,2]
[339051311,1727178648458,-500.0,0.00012889,2]
[339051312,1727178648467,-321.26668069,0.00012889,2]
[339051313,1727178648476,-512.22,0.00012889,2]
[339051314,1727178648486,-503.45422919,0.00012889,2]
[339051315,1727178648495,-500.0,0.00012889,2]
[339051316,1727178648504,-341.96244177,0.00012889,2]
[339051317,1727178648515,-500.0,0.00012889,2]
[339051318,1727178648525,-331.24271759,0.00012889,2]
[339051319,1727178648734,-168.75728241,0.00012889,2]
[339051320,1727178648744,-1403.39,0.00012889,2]
[339051321,1727178648754,-500.0,0.00012889,2]
[339051322,1727178648765,-500.0,0.00012889,2]
[339051323,1727178648775,-500.0,0.00012889,2]
[339051324,1727178648784,-500.0,0.00012889,2]
[339051325,1727178648795,-500.0,0.00012889,2]
[339051326,1727178648804,-500.0,0.00012889,2]
[339051327,1727178648814,-500.0,0.00012889,2]
[339051328,1727178648824,-201.9360131,0.00012889,2]
[339051329,1727178648840,-298.0639869,0.00012889,2]
[339051330,1727178648850,-300.7403911,0.00012889,2]
[339051331,1727178648862,-16.89342803,0.00012889,2]
[339051332,1727178648871,-500.0,0.00012889,2]
[339051333,1727178648881,-684.08,0.00012889,2]
[339051334,1727178648892,-329.1774597,0.00012889,2]
[339051335,1727178648908,-170.8225403,0.00012889,2]
[339051336,1727178648918,-147.7174597,0.00012889,2]
[339051337,1727178649108,-1399.85650094,0.00012247,2]
[339051338,1727178649118,-352.2825403,0.00012889,2]
[339051339,1727178649127,-667.28,0.00012889,2]
[339051340,1727178649139,-529.02,0.00012889,2]
[339051341,1727178649149,-7492.36621237,0.0001289,2]
[339051342,1727178649161,-3710.68125643,0.0001289,2]
[339051343,1727178650033,-105087.09759411,0.0001289,2]
[339051344,1727178650219,-690.600222,0.0001289,2]
[339051345,1727178703205,2025.63013227,0.00022,120]
[339051346,1727178806871,2000.0,0.00022,120]
[339051349,1727178998807,205.79,9.947e-05,2]
[339051350,1727179408909,2000.0,0.00022,120]
[339051359,1727179658235,510.0,0.00021917,120]
[339051360,1727179731817,220.16,9.624e-05,2]
[339051379,1727179794249,182.02,0.00010959,2]
[339051380,1727179831480,-603.4927749,0.00011436,2]
[339051381,1727179831490,-250.0,0.00011471,2]
[339051382,1727179831500,-250.0,0.00011506,2]
[339051383,1727179831509,-167.26,0.00011526,2]
[339051384,1727179831519,-300.0,0.00011535,2]
[339051385,1727179831528,-4370.7072251,0.00011536,2]
[339051386,1727179831539,-286.18192272,0.00011536,2]
[339051389,1727179837542,-1766.7722027,0.00011536,2]
[339051390,1727179837808,-661.50865098,0.00011536,2]
[339051391,1727179837868,-897.47300683,0.00011536,2]
[339051517,1727179839583,-636.9365939,0.00011536,2]
[339051777,1727179842567,-1027.9367294,0.00011536,2]
[339051779,1727179842579,-14252.48366837,0.00011536,2]
[339051780,1727179842589,-8656.89494494,0.00011567,2]
[339051782,1727179842599,-5000.0,0.00011567,2]
[339051784,1727179842608,-5000.0,0.00011567,2]
[339051786,1727179842618,-5000.0,0.00011567,2]
[339051787,1727179842627,-150.0,0.00011688,2]
[339051788,1727179842636,-150.0,0.00011688,2]
[339051789,1727179842646,-150.0,0.00011688,2]
[339051790,1727179842655,-150.0,0.00011688,2]
[339051791,1727179842664,-670.76,0.00011689,2]
[339051792,1727179842675,-200.0,0.00011744,2]
[339051793,1727179842684,-150.0,0.00011774,2]
[339051794,1727179842693,-155.85,0.00011778,2]
[339051795,1727179842703,-216.85,0.00011827,2]
[339051796,1727179842713,-1000.0,0.00011832,2]
[339051798,1727179842723,-150.0,0.00011847,2]
[339051800,1727179842732,-150.0,0.0001185,2]
[339051802,1727179842741,-499.99,0.0001186,2]
[339051804,1727179842751,-150.0,0.00011861,2]
[339051806,1727179842760,-220.16,0.00011888,2]
[339051808,1727179842773,-150.0,0.00011947,2]
[339051810,1727179842783,-150.0,0.00012012,2]
[339051812,1727179842792,-150.0,0.00012012,2]
[339051814,1727179842802,-150.0,0.00012012,2]
[339051816,1727179842811,-150.0,0.00012034,2]
[339051818,1727179842822,-150.0,0.00012121,2]
[339051820,1727179842831,-150.0,0.00012175,2]
[339051822,1727179842841,-150.0,0.00012207,2]
[339051824,1727179842852,-152.1,0.00012238,2]
[339051826,1727179842861,-1906.15279767,0.00012247,2]
[339051828,1727179842871,-150.0,0.00012294,2]
[339051829,1727179842880,-150.0,0.00012337,2]
[339051831,1727179842889,-150.0,0.00012337,2]
[339051833,1727179842899,-150.0,0.00012337,2]
[339051836,1727179842909,-150.0,0.0001238,2]
[339051838,1727179842918,-224.04,0.00012445,2]
[339051840,1727179842927,-150.0,0.00012467,2]
[339051842,1727179842937,-150.0,0.00012499,2]
[339051844,1727179842946,-150.0,0.00012553,2]
[339051846,1727179842956,-1549.0,0.000126,2]
[339051848,1727179842965,-150.0,0.0001264,2]
[339051850,1727179842975,-150.0,0.00012662,2]
[339051851,1727179842984,-150.0,0.00012662,2]
[339051853,1727179842993,-150.0,0.00012662,2]
[339051855,1727179843003,-420.0,0.00012668,2]
[339051857,1727179843012,-1723.6356,0.00012686,2]
[339051860,1727179843022,-8516.4182,0.00012686,2]
[339051862,1727179843031,-150.0,0.00012727,2]
[339051863,1727179843041,-5867.0,0.00012731,2]
[339051865,1727179843051,-177.662,0.00012731,2]
[339051867,1727179843060,-150.0,0.00012731,2]
[339051869,1727179843069,-229.887,0.00012731,2]
[339051871,1727179843079,-446.612,0.0001277,2]
[339051873,1727179843088,-172.01109743,0.0001277,2]
[339051875,1727179843097,-353.74616634,0.00012773,2]
[339051877,1727179843106,-214.3555,0.00012776,2]
[339051879,1727179843117,-897.473,0.00012785,2]
[339051881,1727179843126,-396.0844,0.00012785,2]
[339051883,1727179843136,-2500.0,0.00012787,2]
[339051885,1727179843144,-213.1901,0.00012788,2]
[339051887,1727179843154,-9628.6514,0.00012788,2]
[339051889,1727179843163,-900.8631,0.00012788,2]
[339051891,1727179843173,-488.1035,0.00012788,2]
[339051893,1727179843183,-413.4364122,0.00012789,2]
[339051895,1727179843192,-150.0,0.00012813,2]
[339051896,1727179843201,-150.0,0.00012824,2]
[339051898,1727179843211,-500.0,0.00012876,2]
[339051900,1727179843220,-500.0,0.00012876,2]
[339051902,1727179843229,-500.0,0.00012876,2]
[339051904,1727179843239,-500.0,0.00012876,2]
[339051906,1727179843248,-500.0,0.00012876,2]
[339051908,1727179843257,-500.0,0.00012876,2]
[339051910,1727179843266,-500.0,0.00012876,2]
[339051912,1727179843275,-500.0,0.00012876,2]
[339051914,1727179843285,-500.0,0.00012876,2]
[339051916,1727179843295,-500.0,0.00012876,2]
[339051918,1727179843304,-500.0,0.00012876,2]
[339051920,1727179843314,-500.0,0.00012876,2]
[339051922,1727179843323,-1065.12,0.00012876,2]
[339051924,1727179843332,-500.0,0.00012876,2]
[339051926,1727179843342,-500.0,0.00012876,2]
[339051928,1727179843351,-500.0,0.00012876,2]
[339051930,1727179843360,-500.0,0.00012876,2]
[339051932,1727179843370,-500.0,0.00012876,2]
[339051934,1727179843379,-500.0,0.00012876,2]
[339051936,1727179843388,-500.0,0.00012876,2]
[339051937,1727179843398,-500.0,0.00012876,2]
[339051939,1727179843407,-693.45,0.00012876,2]
[339051941,1727179843416,-500.0,0.00012876,2]
[339051943,1727179843426,-500.0,0.00012876,2]
[339051945,1727179843435,-500.0,0.00012876,2]
[339051947,1727179843445,-500.0,0.00012876,2]
[339051949,1727179843454,-500.0,0.00012876,7]
[339051951,1727179843463,-860.3,0.00012876,2]
[339051953,1727179843473,-500.0,0.00012876,2]
[339051955,1727179843482,-1471.11,0.00012876,2]
[339051957,1727179843491,-500.0,0.00012876,2]
[339051959,1727179843501,-500.0,0.00012876,2]
[339051960,1727179843510,-222.8969576,0.00012876,2]
[339051962,1727179843519,-500.0,0.00012876,2]
[339051964,1727179843529,-500.0,0.00012876,2]
[339051966,1727179843538,-531.56,0.00012876,2]
[339051968,1727179843547,-500.0,0.00012876,2]
[339051970,1727179843558,-500.0,0.00012876,2]
[339051972,1727179843567,-500.0,0.00012876,2]
[339051974,1727179843576,-500.0,0.00012876,2]
[339051975,1727179843585,-500.0,0.00012876,2]
[339051977,1727179843595,-1061.7,0.00012876,2]
[339051979,1727179843605,-500.0,0.00012876,2]
[339051981,1727179843615,-500.0,0.00012876,2]
[339051983,1727179843624,-500.0,0.00012876,2]
[339051985,1727179843633,-500.0,0.00012876,2]
[339051987,1727179843643,-500.0,0.00012876,2]
[339051989,1727179843653,-500.0,0.00012876,2]
[339051991,1727179843662,-500.0,0.00012876,2]
[339051993,1727179843671,-141.05807195,0.00012876,2]
[339052167,1727179845540,-358.94192805,0.00012876,2]
[339052169,1727179845549,-500.0,0.00012876,2]
[339052171,1727179845559,-500.0,0.00012876,2]
[339052173,1727179845568,-500.0,0.00012876,2]
[339052175,1727179845576,-500.0,0.00012876,2]
[339052177,1727179845585,-500.0,0.00012876,2]
[339052179,1727179845594,-500.0,0.00012876,2]
[339052180,1727179845603,-1395.73,0.00012876,2]
[339052182,1727179845612,-500.0,0.00012876,2]
[339052184,1727179845630,-500.0,0.00012876,2]
[339052186,1727179845639,-500.0,0.00012876,2]
[339052206,1727179845791,-500.0,0.00012876,2]
[339052209,1727179845853,-14993.55,0.00012878,2]
[339052211,1727179845870,-15009.98,0.00012883,2]
[339052213,1727179845879,-500.0,0.00012885,2]
[339052215,1727179845888,-500.0,0.00012885,2]
[339052217,1727179845897,-500.0,0.00012885,2]
[339052219,1727179845906,-500.0,0.00012885,2]
[339052221,1727179845915,-505.93880979,0.00012885,2]
[339052223,1727179845924,-1065.12,0.00012885,2]
[339052225,1727179845933,-505.70003043,0.00012885,2]
[339052226,1727179845942,-500.0,0.00012885,2]
[339052228,1727179845951,-500.0,0.00012885,2]
[339052230,1727179845960,-500.0,0.00012885,2]
[339052232,1727179845969,-500.0,0.00012885,2]
[339052234,1727179845979,-500.0,0.00012885,2]
[339052236,1727179845988,-500.0,0.00012885,2]
[339052238,1727179845997,-500.0,0.00012885,2]
[339052240,1727179846008,-693.45,0.00012885,2]
[339052242,1727179846018,-500.0,0.00012885,2]
[339052244,1727179846027,-500.0,0.00012885,2]
[339052246,1727179846036,-500.0,0.00012885,2]
[339052247,1727179846046,-500.0,0.00012885,2]
[339052250,1727179846056,-500.0,0.00012885,7]
[339052252,1727179846066,-860.3,0.00012885,2]
[339052253,1727179846076,-500.0,0.00012885,2]
[339052255,1727179846085,-1471.11,0.00012885,2]
[339052257,1727179846095,-500.0,0.00012885,2]
[339052259,1727179846105,-500.0,0.00012885,2]
[339052261,1727179846120,-231.51492453,0.00012885,2]
[339052263,1727179846129,-500.0,0.00012885,2]
[339052265,1727179846137,-531.56,0.00012885,2]
[339052267,1727179846147,-500.0,0.00012885,2]
[339052269,1727179846156,-500.0,0.00012885,2]
[339052271,1727179846165,-500.0,0.00012885,2]
[339052273,1727179846174,-500.0,0.00012885,2]
[339052275,1727179846184,-500.0,0.00012885,2]
[339052277,1727179846193,-1061.7,0.00012885,2]
[339052279,1727179846205,-500.0,0.00012885,2]
[339052281,1727179846215,-500.0,0.00012885,2]
[339052283,1727179846224,-159.05097387,0.00012885,2]
[339052803,1727180007145,510.019993,0.00022,120]
[339052804,1727180170793,170120.9145781,0.0001,2]
[339052805,1727180313118,222.81,9.959e-05,2]
[339052806,1727180318268,5000.0,0.00022,120]
[339052807,1727180420755,5000.0,0.00022,120]
[339052808,1727180431642,5000.0,0.00022,120]
[339052809,1727180487075,500.0,0.00022,120]
[339052810,1727180496010,214.0,0.00022,120]
[339052811,1727180505922,500.0,0.00022,120]
[339052812,1727180515289,500.0,0.00022,120]
[339052813,1727180524006,178.6,0.00010959,2]
[339052814,1727180729200,68340.36004931,0.000101,2]
[339052838,1727180754904,4513.13594689,6.94e-05,2]
[339052839,1727180820474,510.0,0.00021917,120]
[339052847,1727180876659,5899.20563044,0.0001,2]
[339052848,1727180886423,264.28,9.901e-05,2]
[339052858,1727181031557,-150.0,0.00011688,2]
[339052859,1727181031567,-150.0,0.00011688,2]
[339052861,1727181031576,-150.0,0.00011688,2]
[339052863,1727181031586,-126.02,0.00011688,2]
[339052864,1727181031724,-145.37998586,0.00011688,2]
[339052865,1727181031734,-372.8196,0.00011696,2]
[339052866,1727181031743,-250.0,0.00011742,2]
[339052867,1727181031753,-250.0,0.00011746,2]
[339052868,1727181031762,-500.0,0.00011773,2]
[339052869,1727181031771,-2520.85625602,0.00011796,2]
[339052882,1727181031965,-6176.13262702,0.00011796,2]
[339052888,1727181031994,1050.0,0.00011,2]
[339052896,1727181037709,-1272.85891257,0.00011796,2]
[339052897,1727181037721,-1180.52477935,0.00011796,2]
[339052898,1727181037733,-666.77284336,0.00011796,2]
[339052899,1727181037745,-6554.30971465,0.00011796,2]
[339052900,1727181037758,-1751.89351682,0.00011796,2]
[339052902,1727181037773,-291.25112894,0.00011796,2]
[339052903,1727181037784,-477.85701832,0.00011796,2]
[339052904,1727181037826,-3007.54320295,0.00011796,2]
[339052905,1727181037836,-208.37,0.00011803,2]
[339052906,1727181037846,-184.23035995,0.0001182,2]
[339052907,1727181037858,-15.76964005,0.0001182,2]
[339052908,1727181037867,-515.55,0.00011834,2]
[339052909,1727181037876,-468.68035995,0.00011867,2]
[339052910,1727181037887,-360.53268373,0.00011867,2]
[339052911,1727181037915,-56.69695632,0.00011867,2]
[339052912,1727181037925,-1000.0,0.00011895,2]
[339052913,1727181037934,-150.0,0.00012121,2]
[339052914,1727181037943,-264.28,0.00012165,2]
[339052915,1727181037952,-3713.90093375,0.00012247,2]
[339052916,1727181037962,-499.99,0.00012247,2]
[339052917,1727181037972,-150.0,0.00012553,2]
[339052918,1727181037982,-150.0,0.00012596,2]
[339052919,1727181037991,-150.0,0.00012657,2]
[339052920,1727181038000,-4768.34126907,0.0001268,2]
[339052921,1727181038011,-295.65162427,0.0001268,2]
[339052922,1727181038053,-804.984447,0.0001268,2]
[339052923,1727181038065,-324.58299937,0.0001268,2]
[339052924,1727181038113,-451.03378972,0.0001268,2]
[339052934,1727181039823,-1344.25561625,0.0001268,2]
[339053022,1727181042777,-6180.03585432,0.0001268,2]
[339053023,1727181042787,-151.57029758,0.00012685,2]
[339053024,1727181042797,-151.57029752,0.00012712,2]
[339053025,1727181042806,-357.29,0.00012753,2]
[339053026,1727181042816,-150.0,0.00012779,2]